[Event "*** Titled Tuesday 3|2 Blitz"]
[Site "Chess.com"]
[Date "2015.10.06"]
[Round "1"]
[White "Assasin14"]
[Black "StellarChessPro"]
[Result "1/2-1/2"]
[WhiteElo "1725"]
[BlackElo "2245"]
[TimeControl "180+2"]
[EndTime "17:09:01 PDT"]
[Termination "Game drawn by agreement"]

1. e4 {[%clk 0:02:59.1]} 1... c6 {[%clk 0:02:59.3]} 2. d4 {[%clk 0:02:59.6]}
2... d5 {[%clk 0:02:59.6]} 3. Nc3 {[%clk 0:03:00.6]} 3... dxe4 {[%clk
0:03:00.5]} 4. Nxe4 {[%clk 0:03:01.6]} 4... Bf5 {[%clk 0:03:02.1]} 5. Ng3 {[%clk
0:03:02.8]} 5... Bg6 {[%clk 0:03:03.4]} 6. h4 {[%clk 0:03:02.5]} 6... h6 {[%clk
0:03:04.5]} 7. Nf3 {[%clk 0:03:03.3]} 7... Nd7 {[%clk 0:03:05.2]} 8. h5 {[%clk
0:03:04.1]} 8... Bh7 {[%clk 0:03:06.3]} 9. Bd3 {[%clk 0:03:05.7]} 9... Bxd3
{[%clk 0:03:06.9]} 10. Qxd3 {[%clk 0:03:07.6]} 10... e6 {[%clk 0:03:08.4]} 11.
Bd2 {[%clk 0:03:08.5]} 11... Ngf6 {[%clk 0:03:09.5]} 12. O-O-O {[%clk
0:03:09.6]} 12... Qc7 {[%clk 0:03:09.9]} 13. Qe2 {[%clk 0:03:10.7]} 13... Bd6
{[%clk 0:03:06.7]} 14. Ne4 {[%clk 0:03:09.9]} 14... Nxe4 {[%clk 0:03:07.7]} 15.
Qxe4 {[%clk 0:03:11.8]} 15... O-O-O {[%clk 0:03:09.3]} 16. Kb1 {[%clk
0:03:11.4]} 16... Kb8 {[%clk 0:03:09.7]} 17. g3 {[%clk 0:03:12.3]} 17... c5
{[%clk 0:03:10.4]} 18. Be3 {[%clk 0:03:05.8]} 18... c4 {[%clk 0:03:10.3]} 19. c3
{[%clk 0:02:57.8]} 19... Nf6 {[%clk 0:03:10.9]} 20. Qc2 {[%clk 0:02:58.1]} 20...
Nd5 {[%clk 0:03:09.8]} 21. Bd2 {[%clk 0:02:58.2]} 21... b5 {[%clk 0:03:06.2]}
22. Rhe1 {[%clk 0:02:58.2]} 22... a5 {[%clk 0:03:05.8]} 23. Ne5 {[%clk
0:02:58.5]} 23... Bxe5 {[%clk 0:03:05.9]} 24. dxe5 {[%clk 0:02:59.3]} 24... Kb7
{[%clk 0:03:04.1]} 25. Qe4 {[%clk 0:02:58.3]} 25... Qc6 {[%clk 0:03:04.2]} 26.
f4 {[%clk 0:02:58.8]} 26... Rd7 {[%clk 0:03:04.3]} 27. Bc1 {[%clk 0:02:57.6]}
27... Rhd8 {[%clk 0:03:03.4]} 28. Kc2 {[%clk 0:02:58.4]} 28... b4 {[%clk
0:03:03.5]} 29. Rd4 {[%clk 0:02:55.5]} 29... bxc3 {[%clk 0:02:57.8]} 30. bxc3
{[%clk 0:02:56.2]} 30... Qa4+ {[%clk 0:02:58.5]} 31. Kb2 {[%clk 0:02:49.7]}
31... Ka8 {[%clk 0:02:58.2]} 32. Rxc4 {[%clk 0:02:45.2]} 32... Rb7+ {[%clk
0:02:58.7]} 33. Ka1 {[%clk 0:02:45.9]} 33... Qb5 {[%clk 0:02:52.7]} 34. Ba3
{[%clk 0:02:44.5]} 34... Nb6 {[%clk 0:02:47.3]} 35. Rc5 {[%clk 0:02:42]} 35...
Qa6 {[%clk 0:02:43.8]} 36. Rb1 {[%clk 0:02:40.6]} 36... Rd5 {[%clk 0:02:43]} 37.
Qh7 {[%clk 0:02:12.1]} 37... Na4 {[%clk 0:02:36.2]} 38. Qg8+ {[%clk 0:02:08.3]}
38... Ka7 {[%clk 0:02:36.4]} 39. Rxb7+ {[%clk 0:01:58.4]} 39... Qxb7 {[%clk
0:02:33.5]} 40. Rxd5 {[%clk 0:01:59.5]} 40... exd5 {[%clk 0:02:32]} 41. Qf8
{[%clk 0:01:52.6]} 41... d4 {[%clk 0:02:31.2]} 42. Bc5+ {[%clk 0:01:45.4]} 42...
Ka6 {[%clk 0:02:31.7]} 43. Qd6+ {[%clk 0:01:46.2]} 43... Kb5 {[%clk 0:02:30.2]}
44. c4+ {[%clk 0:01:18.8]} 44... Kxc4 {[%clk 0:02:31.1]} 45. Qxd4+ {[%clk
0:01:19.9]} 45... Kb5 {[%clk 0:02:32.4]} 46. Ba7 {[%clk 0:01:17.2]} 46... Qh1+
{[%clk 0:02:27.5]} 47. Qg1 {[%clk 0:01:17.4]} 47... Qd5 {[%clk 0:02:03.2]} 48.
Qf1+ {[%clk 0:01:09.1]} 48... Qc4 {[%clk 0:01:54]} 49. Qxc4+ {[%clk 0:00:57.9]}
49... Kxc4 {[%clk 0:01:55.9]} 50. f5 {[%clk 0:00:51.4]} 50... Kd5 {[%clk
0:01:56.8]} 51. f6 {[%clk 0:00:40.6]} 51... gxf6 {[%clk 0:01:57.6]} 52. exf6
{[%clk 0:00:42.5]} 52... Nc3 {[%clk 0:01:58.2]} 53. Be3 {[%clk 0:00:41.4]} 53...
Ne4 {[%clk 0:01:59]} 54. Bxh6 {[%clk 0:00:41.8]} 54... Nxg3 {[%clk 0:02:00.1]}
55. Bd2 {[%clk 0:00:30.1]} 55... Nxh5 {[%clk 0:01:59.8]} 56. Bxa5 {[%clk
0:00:30.7]} 56... Nxf6 {[%clk 0:02:00.9]} 57. Be1 {[%clk 0:00:29.5]} 57... Ne4
{[%clk 0:01:59.8]} 58. Kb2 {[%clk 0:00:30.5]} 58... Kc4 {[%clk 0:02:01.1]} 59.
a4 {[%clk 0:00:29.7]} 59... Nc5 {[%clk 0:02:02.4]} 60. a5 {[%clk 0:00:12.3]}
60... Nd3+ {[%clk 0:01:53.6]} 61. Kb1 {[%clk 0:00:13.3]} 61... Kb5 {[%clk
0:01:51.4]} 62. Bd2 {[%clk 0:00:13.2]} 62... f5 {[%clk 0:01:52]} 63. Kc2 {[%clk
0:00:14.4]} 63... Nc5 {[%clk 0:01:52.2]} 64. Kd1 {[%clk 0:00:14.8]} 64... Ne4
{[%clk 0:01:53.1]} 65. Be1 {[%clk 0:00:15.3]} 65... f4 {[%clk 0:01:52.8]} 66.
Ke2 {[%clk 0:00:16.6]} 66... Nd6 {[%clk 0:01:53.3]} 67. Kf3 {[%clk 0:00:17.7]}
67... Nc4 {[%clk 0:01:54.6]} 68. Kxf4 {[%clk 0:00:19.1]} 68... Nxa5 {[%clk
0:01:55.2]} 1/2-1/2

[Event "*** Titled Tuesday 3|2 Blitz"]
[Site "Chess.com"]
[Date "2015.10.06"]
[Round "1"]
[White "HubertKnott"]
[Black "pKiLz5Rn9b"]
[Result "0-1"]
[WhiteElo "1978"]
[BlackElo "2401"]
[TimeControl "180+2"]
[EndTime "17:09:15 PDT"]
[Termination "pKiLz5Rn9b won by resignation"]

1. d4 {[%clk 0:02:59.2]} 1... e6 {[%clk 0:02:59.3]} 2. Nf3 {[%clk 0:03:00.1]}
2... Nf6 {[%clk 0:02:54.8]} 3. c4 {[%clk 0:03:00.9]} 3... b6 {[%clk 0:02:55]} 4.
g3 {[%clk 0:03:00.6]} 4... Bb7 {[%clk 0:02:49]} 5. Bg2 {[%clk 0:03:01.4]} 5...
Be7 {[%clk 0:02:50]} 6. O-O {[%clk 0:03:02.3]} 6... O-O {[%clk 0:02:50.8]} 7.
Nc3 {[%clk 0:03:03.4]} 7... d5 {[%clk 0:02:51.5]} 8. Ne5 {[%clk 0:03:03.2]} 8...
Na6 {[%clk 0:02:48.1]} 9. b3 {[%clk 0:03:01]} 9... c5 {[%clk 0:02:47.3]} 10. e3
{[%clk 0:02:56.2]} 10... Rc8 {[%clk 0:02:45.2]} 11. Bb2 {[%clk 0:02:55.6]} 11...
Ne4 {[%clk 0:02:45.1]} 12. Nxe4 {[%clk 0:02:34.4]} 12... dxe4 {[%clk 0:02:44]}
13. a3 {[%clk 0:02:21.9]} 13... f6 {[%clk 0:02:31.3]} 14. Qg4 {[%clk 0:01:56.4]}
14... fxe5 {[%clk 0:02:24.9]} 15. Qxe6+ {[%clk 0:01:57]} 15... Kh8 {[%clk
0:02:25]} 16. dxe5 {[%clk 0:01:56.4]} 16... Nc7 {[%clk 0:02:24.8]} 17. Qg4
{[%clk 0:01:53.1]} 17... Qd2 {[%clk 0:02:14]} 18. Rab1 {[%clk 0:01:47.4]} 18...
Qd8 {[%clk 0:01:47]} 19. Bxe4 {[%clk 0:01:45.9]} 19... Bxe4 {[%clk 0:01:47.4]}
20. Qxe4 {[%clk 0:01:46.9]} 20... Qd7 {[%clk 0:01:39.2]} 21. Kg2 {[%clk
0:01:16.1]} 21... Rcd8 {[%clk 0:01:31.7]} 22. Rbd1 {[%clk 0:01:12.9]} 22... Qe6
{[%clk 0:01:20.5]} 23. Qb7 {[%clk 0:01:10.9]} 23... Rd7 {[%clk 0:00:37.9]} 24.
Qe4 {[%clk 0:00:49.8]} 24... Rfd8 {[%clk 0:00:31.4]} 25. Rde1 {[%clk 0:00:43.9]}
25... Rd2 {[%clk 0:00:28.3]} 26. Bc3 {[%clk 0:00:40.3]} 26... R2d3 {[%clk
0:00:28.8]} 27. Rc1 {[%clk 0:00:39.3]} 27... b5 {[%clk 0:00:22.5]} 28. f4 {[%clk
0:00:36.3]} 28... bxc4 {[%clk 0:00:22.9]} 29. f5 {[%clk 0:00:34.4]} 29... Qd5
{[%clk 0:00:20.8]} 30. Qxd5 {[%clk 0:00:34.6]} 30... Nxd5 {[%clk 0:00:22.7]} 31.
Ba5 {[%clk 0:00:32.2]} 31... Nxe3+ {[%clk 0:00:22.4]} 32. Kf2 {[%clk 0:00:33.4]}
32... R8d5 {[%clk 0:00:19.2]} 33. Rfe1 {[%clk 0:00:28.9]} 33... Nxf5 {[%clk
0:00:19.2]} 34. bxc4 {[%clk 0:00:24.2]} 34... R5d4 {[%clk 0:00:19.2]} 35. Bc3
{[%clk 0:00:20.1]} 35... Rd8 {[%clk 0:00:18.4]} 36. g4 {[%clk 0:00:19.1]} 36...
Nh6 {[%clk 0:00:17.6]} 37. Kg2 {[%clk 0:00:14.1]} 37... Nxg4 {[%clk 0:00:17.4]}
38. Rf1 {[%clk 0:00:15.1]} 38... h5 {[%clk 0:00:15.6]} 39. Rf7 {[%clk
0:00:15.2]} 39... Bg5 {[%clk 0:00:16.5]} 40. h3 {[%clk 0:00:15.1]} 40... Bxc1
{[%clk 0:00:16.3]} 41. hxg4 {[%clk 0:00:14.7]} 41... Rxc3 {[%clk 0:00:17.5]} 42.
e6 {[%clk 0:00:15.4]} 42... Re3 {[%clk 0:00:15.3]} 43. e7 {[%clk 0:00:16.1]}
43... Rd2+ {[%clk 0:00:15.2]} 44. Kf1 {[%clk 0:00:16.8]} 44... Kh7 {[%clk
0:00:16.1]} 45. gxh5 {[%clk 0:00:16.3]} 45... Rde2 {[%clk 0:00:15.3]} 46. h6
{[%clk 0:00:16.1]} 46... Kxh6 {[%clk 0:00:16]} 47. e8=Q {[%clk 0:00:16.6]} 47...
Rxe8 {[%clk 0:00:16.1]} 0-1

[Event "*** Titled Tuesday 3|2 Blitz"]
[Site "Chess.com"]
[Date "2015.10.06"]
[Round "1"]
[White "LePlusMortel"]
[Black "eugeniusjr"]
[Result "1-0"]
[WhiteElo "2410"]
[BlackElo "1997"]
[TimeControl "180+2"]
[EndTime "17:09:45 PDT"]
[Termination "LePlusMortel won on time"]

1. Nf3 {[%clk 0:03:01.9]} 1... c5 {[%clk 0:03:00.3]} 2. g3 {[%clk 0:03:02.6]}
2... g6 {[%clk 0:03:01.7]} 3. Bg2 {[%clk 0:03:03.9]} 3... Bg7 {[%clk 0:03:03.4]}
4. O-O {[%clk 0:03:05.6]} 4... Nc6 {[%clk 0:03:04.9]} 5. d3 {[%clk 0:03:07.2]}
5... d6 {[%clk 0:03:04.7]} 6. c3 {[%clk 0:03:07.9]} 6... e5 {[%clk 0:03:05.6]}
7. Qa4 {[%clk 0:03:04.8]} 7... Ne7 {[%clk 0:03:03.3]} 8. h3 {[%clk 0:03:05.9]}
8... O-O {[%clk 0:03:03.1]} 9. Qh4 {[%clk 0:03:06.8]} 9... h6 {[%clk 0:02:54.2]}
10. Bxh6 {[%clk 0:03:07.2]} 10... Nf5 {[%clk 0:02:54.9]} 11. Qxd8 {[%clk
0:03:08]} 11... Rxd8 {[%clk 0:02:55.4]} 12. Bxg7 {[%clk 0:03:09.9]} 12... Kxg7
{[%clk 0:02:56.9]} 13. a4 {[%clk 0:03:10.8]} 13... Rb8 {[%clk 0:02:53.7]} 14. h4
{[%clk 0:03:09.4]} 14... a6 {[%clk 0:02:44.7]} 15. a5 {[%clk 0:03:09.6]} 15...
b6 {[%clk 0:02:39.8]} 16. axb6 {[%clk 0:03:10]} 16... Rxb6 {[%clk 0:02:41.7]}
17. Ra2 {[%clk 0:03:11.3]} 17... Be6 {[%clk 0:02:38.5]} 18. c4 {[%clk
0:03:11.9]} 18... Nb4 {[%clk 0:02:38.1]} 19. Ra4 {[%clk 0:03:06.1]} 19... Bd7
{[%clk 0:02:34.3]} 20. Ra5 {[%clk 0:02:55.3]} 20... Nc6 {[%clk 0:02:31.8]} 21.
Ra1 {[%clk 0:02:56.3]} 21... Rxb2 {[%clk 0:02:30]} 22. Nc3 {[%clk 0:02:57.4]}
22... Nb4 {[%clk 0:02:26.4]} 23. Rfb1 {[%clk 0:02:43]} 23... Rc2 {[%clk
0:02:20.9]} 24. Ra3 {[%clk 0:02:29.9]} 24... Nd4 {[%clk 0:02:15]} 25. Nxd4
{[%clk 0:01:52.2]} 25... exd4 {[%clk 0:02:16.9]} 26. Nd5 {[%clk 0:01:45.7]}
26... Rxe2 {[%clk 0:02:09.3]} 27. Nxb4 {[%clk 0:01:40.9]} 27... cxb4 {[%clk
0:02:05.7]} 28. Rxb4 {[%clk 0:01:40.9]} 28... Re1+ {[%clk 0:01:59.3]} 29. Kh2
{[%clk 0:01:40.6]} 29... g5 {[%clk 0:01:56.5]} 30. Rxa6 {[%clk 0:01:00.7]} 30...
Bf5 {[%clk 0:01:56.9]} 31. Rb7 {[%clk 0:00:44.9]} 31... Bxd3 {[%clk 0:01:41.5]}
32. Bd5 {[%clk 0:00:44.6]} 32... Rf8 {[%clk 0:01:30.2]} 33. Rxd6 {[%clk
0:00:34.4]} 33... gxh4 {[%clk 0:01:11.2]} 34. Rdd7 {[%clk 0:00:27]} 34... hxg3+
{[%clk 0:01:08.1]} 35. Kxg3 {[%clk 0:00:28.9]} 35... Bg6 {[%clk 0:01:01.7]} 36.
c5 {[%clk 0:00:26.6]} 36... Rc1 {[%clk 0:00:54.6]} 37. c6 {[%clk 0:00:26.7]}
37... d3 {[%clk 0:00:54.6]} 38. Bf3 {[%clk 0:00:28]} 38... Rc8 {[%clk
0:00:35.6]} 39. Rd6 {[%clk 0:00:26.3]} 39... Rc2 {[%clk 0:00:22.9]} 40. Rbd7
{[%clk 0:00:24.7]} 40... Rc4 {[%clk 0:00:14.8]} 41. Rd8 {[%clk 0:00:23.7]} 41...
Rxd8 {[%clk 0:00:14.1]} 42. Rxd8 {[%clk 0:00:25.6]} 42... Rc2 {[%clk 0:00:15.1]}
43. Rd7 {[%clk 0:00:23.8]} 43... Kf6 {[%clk 0:00:13.9]} 44. Bg4 {[%clk
0:00:18.9]} 44... Rxc6 {[%clk 0:00:11.4]} 45. f4 {[%clk 0:00:15]} 45... Rc2
{[%clk 0:00:09.7]} 46. Kh4 {[%clk 0:00:14.2]} 46... Rh2+ {[%clk 0:00:08.6]} 47.
Kg3 {[%clk 0:00:15.1]} 47... Rh1 {[%clk 0:00:07.4]} 48. f5 {[%clk 0:00:15.5]}
48... Bxf5 {[%clk 0:00:04.9]} 49. Bxf5 {[%clk 0:00:17.4]} 49... Kxf5 {[%clk
0:00:05.6]} 50. Rxd3 {[%clk 0:00:18.3]} 50... Rg1+ {[%clk 0:00:05.1]} 51. Kf2
{[%clk 0:00:19.2]} 51... Rg4 {[%clk 0:00:05.6]} 52. Rb3 {[%clk 0:00:19.9]} 52...
Rf4+ {[%clk 0:00:05.4]} 53. Kg3 {[%clk 0:00:21.3]} 53... Kg5 {[%clk 0:00:05.7]}
54. Rb5+ {[%clk 0:00:21.4]} 54... Rf5 {[%clk 0:00:06.6]} 55. Rb3 {[%clk
0:00:23]} 55... Rd5 {[%clk 0:00:05.6]} 56. Ra3 {[%clk 0:00:24.1]} 1-0

[Event "*** Titled Tuesday 3|2 Blitz"]
[Site "Chess.com"]
[Date "2015.10.06"]
[Round "1"]
[White "GMVallejo"]
[Black "cheese111"]
[Result "1-0"]
[WhiteElo "2589"]
[BlackElo "2150"]
[TimeControl "180+2"]
[EndTime "17:09:51 PDT"]
[Termination "GMVallejo won by resignation"]

1. e4 {[%clk 0:02:58]} 1... e5 {[%clk 0:03:01]} 2. Nf3 {[%clk 0:02:58.4]} 2...
Nc6 {[%clk 0:03:02.1]} 3. Nc3 {[%clk 0:02:59.5]} 3... Nf6 {[%clk 0:03:02.5]} 4.
Bb5 {[%clk 0:03:01.1]} 4... Bb4 {[%clk 0:02:59.5]} 5. d3 {[%clk 0:03:01.7]} 5...
d6 {[%clk 0:02:59.9]} 6. O-O {[%clk 0:03:02.6]} 6... O-O {[%clk 0:03:00.8]} 7.
Ne2 {[%clk 0:03:04]} 7... Ne7 {[%clk 0:02:57.1]} 8. c3 {[%clk 0:03:05]} 8... Ba5
{[%clk 0:02:57.3]} 9. Ng3 {[%clk 0:03:05.1]} 9... c6 {[%clk 0:02:58.2]} 10. Ba4
{[%clk 0:03:05.6]} 10... Ng6 {[%clk 0:02:59.3]} 11. h3 {[%clk 0:02:59.4]} 11...
Re8 {[%clk 0:02:53]} 12. Re1 {[%clk 0:02:57.9]} 12... h6 {[%clk 0:02:43.2]} 13.
Bd2 {[%clk 0:02:48.7]} 13... d5 {[%clk 0:02:34.2]} 14. exd5 {[%clk 0:02:39.4]}
14... Qxd5 {[%clk 0:02:33.9]} 15. d4 {[%clk 0:02:32.4]} 15... exd4 {[%clk
0:02:11.6]} 16. Rxe8+ {[%clk 0:02:34.3]} 16... Nxe8 {[%clk 0:02:11.9]} 17. Bb3
{[%clk 0:02:06.4]} 17... Qd6 {[%clk 0:01:46.2]} 18. Nxd4 {[%clk 0:02:02.5]}
18... Nc7 {[%clk 0:01:46]} 19. Qh5 {[%clk 0:01:52.1]} 19... Bb6 {[%clk
0:01:35.4]} 20. Ngf5 {[%clk 0:01:22.3]} 20... Bxf5 {[%clk 0:01:04.1]} 21. Nxf5
{[%clk 0:01:22]} 21... Qf6 {[%clk 0:00:57.9]} 22. Qxg6 {[%clk 0:01:05.9]} 22...
Qxg6 {[%clk 0:00:57.9]} 23. Ne7+ {[%clk 0:01:07.4]} 23... Kh7 {[%clk 0:00:45.3]}
24. Nxg6 {[%clk 0:01:09.3]} 24... Kxg6 {[%clk 0:00:46.9]} 25. Bf4 {[%clk
0:01:02]} 25... Re8 {[%clk 0:00:42.9]} 26. Kf1 {[%clk 0:01:01.7]} 26... Kf6
{[%clk 0:00:36.5]} 27. Rd1 {[%clk 0:01:01.6]} 27... Ne6 {[%clk 0:00:30.1]} 28.
Bd6 {[%clk 0:00:47.1]} 28... Rd8 {[%clk 0:00:23.6]} 29. f4 {[%clk 0:00:31.2]}
29... Bc7 {[%clk 0:00:16.7]} 30. Bxc7 {[%clk 0:00:32.4]} 30... Rxd1+ {[%clk
0:00:17.1]} 31. Bxd1 {[%clk 0:00:34.3]} 31... Nxc7 {[%clk 0:00:18.5]} 32. Kf2
{[%clk 0:00:36.2]} 32... Ne6 {[%clk 0:00:19.2]} 33. Ke3 {[%clk 0:00:37.1]} 33...
Nc7 {[%clk 0:00:19.9]} 34. g3 {[%clk 0:00:38.1]} 34... Nd5+ {[%clk 0:00:20.4]}
35. Ke4 {[%clk 0:00:39.5]} 35... Ke6 {[%clk 0:00:21.6]} 36. Bb3 {[%clk
0:00:40.5]} 36... Kd6 {[%clk 0:00:22.8]} 37. h4 {[%clk 0:00:37.6]} 37... Nf6+
{[%clk 0:00:22.7]} 38. Ke3 {[%clk 0:00:35.8]} 38... Nd5+ {[%clk 0:00:23.3]} 39.
Kd4 {[%clk 0:00:37]} 39... f6 {[%clk 0:00:21.5]} 40. Ke4 {[%clk 0:00:37.1]}
40... Ne7 {[%clk 0:00:21.7]} 41. g4 {[%clk 0:00:36.4]} 41... g5 {[%clk
0:00:21.8]} 42. fxg5 {[%clk 0:00:36.3]} 42... fxg5 {[%clk 0:00:22.9]} 43. hxg5
{[%clk 0:00:36.2]} 43... hxg5 {[%clk 0:00:23.8]} 44. a3 {[%clk 0:00:36.2]} 44...
b6 {[%clk 0:00:18]} 45. Ba2 {[%clk 0:00:36.6]} 45... a5 {[%clk 0:00:15.9]} 46.
b4 {[%clk 0:00:37.6]} 46... axb4 {[%clk 0:00:14]} 47. cxb4 {[%clk 0:00:39.5]}
47... c5 {[%clk 0:00:13.9]} 48. b5 {[%clk 0:00:39.2]} 48... c4 {[%clk
0:00:13.6]} 49. Bxc4 {[%clk 0:00:39.3]} 49... Kc5 {[%clk 0:00:14.7]} 50. Be2
{[%clk 0:00:35.3]} 50... Nd5 {[%clk 0:00:15.2]} 51. Kf5 {[%clk 0:00:32.4]} 51...
Nc3 {[%clk 0:00:12.9]} 52. Bf1 {[%clk 0:00:31.6]} 52... Nb1 {[%clk 0:00:08.4]}
53. Kxg5 {[%clk 0:00:31.1]} 53... Nxa3 {[%clk 0:00:09.5]} 54. Kf6 {[%clk
0:00:29.4]} 54... Nc2 {[%clk 0:00:07.7]} 55. g5 {[%clk 0:00:29.8]} 55... Ne3
{[%clk 0:00:06.1]} 56. g6 {[%clk 0:00:30.4]} 56... Ng4+ {[%clk 0:00:07.1]} 57.
Kg5 {[%clk 0:00:25.4]} 1-0

[Event "*** Titled Tuesday 3|2 Blitz"]
[Site "Chess.com"]
[Date "2015.10.06"]
[Round "1"]
[White "dsanchez1973"]
[Black "ltpnj"]
[Result "0-1"]
[WhiteElo "1944"]
[BlackElo "2337"]
[TimeControl "180+2"]
[EndTime "17:09:58 PDT"]
[Termination "ltpnj won on time"]

1. e4 {[%clk 0:02:52.8]} 1... e5 {[%clk 0:02:58.9]} 2. Nf3 {[%clk 0:02:53.5]}
2... Nc6 {[%clk 0:02:59.9]} 3. d4 {[%clk 0:02:55.2]} 3... exd4 {[%clk
0:03:00.5]} 4. c3 {[%clk 0:02:56.1]} 4... d5 {[%clk 0:02:55.6]} 5. exd5 {[%clk
0:02:56.9]} 5... Qxd5 {[%clk 0:02:56.3]} 6. cxd4 {[%clk 0:02:58.7]} 6... Bg4
{[%clk 0:02:45.5]} 7. Be2 {[%clk 0:02:59.7]} 7... Nf6 {[%clk 0:02:39.4]} 8. Nc3
{[%clk 0:03:00.3]} 8... Bb4 {[%clk 0:02:35.9]} 9. O-O {[%clk 0:03:01]} 9... Bxc3
{[%clk 0:02:33.7]} 10. bxc3 {[%clk 0:03:02.8]} 10... O-O {[%clk 0:02:34.7]} 11.
c4 {[%clk 0:03:03.5]} 11... Qd6 {[%clk 0:02:24.8]} 12. d5 {[%clk 0:03:00.7]}
12... Ne5 {[%clk 0:02:16]} 13. Bb2 {[%clk 0:03:01.2]} 13... Bxf3 {[%clk
0:02:02.6]} 14. Bxf3 {[%clk 0:02:59.6]} 14... Nxc4 {[%clk 0:02:01.4]} 15. Bd4
{[%clk 0:02:55.2]} 15... Nb6 {[%clk 0:01:57.9]} 16. Qc2 {[%clk 0:02:34.7]} 16...
Rfd8 {[%clk 0:01:52.2]} 17. Rfd1 {[%clk 0:02:33.9]} 17... Rac8 {[%clk
0:01:35.3]} 18. Qf5 {[%clk 0:02:27.8]} 18... Nbxd5 {[%clk 0:01:26.2]} 19. Bxf6
{[%clk 0:01:41]} 19... Qxf6 {[%clk 0:01:28.1]} 20. Qxf6 {[%clk 0:01:40.4]} 20...
Nxf6 {[%clk 0:01:29.1]} 21. Bxb7 {[%clk 0:01:41.5]} 21... Rxd1+ {[%clk
0:01:26.5]} 22. Rxd1 {[%clk 0:01:42]} 22... Rb8 {[%clk 0:01:28.1]} 23. a4 {[%clk
0:01:37.5]} 23... Kf8 {[%clk 0:01:28.7]} 24. Bc6 {[%clk 0:01:36.6]} 24... Ke7
{[%clk 0:01:27.1]} 25. h3 {[%clk 0:01:35.7]} 25... Rb6 {[%clk 0:01:25.3]} 26.
Bf3 {[%clk 0:01:20.3]} 26... c5 {[%clk 0:01:25.1]} 27. g4 {[%clk 0:01:20.1]}
27... Rb4 {[%clk 0:01:21.3]} 28. g5 {[%clk 0:01:19.9]} 28... Nd7 {[%clk
0:01:22.4]} 29. Kg2 {[%clk 0:01:16.3]} 29... Rxa4 {[%clk 0:01:19]} 30. Bc6
{[%clk 0:01:12.3]} 30... Rd4 {[%clk 0:01:20.1]} 31. Ra1 {[%clk 0:01:13]} 31...
Rd6 {[%clk 0:01:14.8]} 32. Be4 {[%clk 0:01:11.3]} 32... a6 {[%clk 0:01:13.5]}
33. Kf3 {[%clk 0:01:05.8]} 33... c4 {[%clk 0:01:09.2]} 34. Ke3 {[%clk
0:01:04.3]} 34... Nc5 {[%clk 0:01:09.1]} 35. Bc2 {[%clk 0:00:54.3]} 35... Kd7
{[%clk 0:00:57.5]} 36. h4 {[%clk 0:00:52.3]} 36... h6 {[%clk 0:00:57.2]} 37. f4
{[%clk 0:00:50.5]} 37... Kc6 {[%clk 0:00:51.7]} 38. f5 {[%clk 0:00:38.1]} 38...
hxg5 {[%clk 0:00:51.7]} 39. hxg5 {[%clk 0:00:38.8]} 39... Kb5 {[%clk 0:00:42.4]}
40. Rb1+ {[%clk 0:00:38]} 40... Kc6 {[%clk 0:00:43.6]} 41. Rb8 {[%clk
0:00:33.4]} 41... Rd7 {[%clk 0:00:36.9]} 42. Rc8+ {[%clk 0:00:33.2]} 42... Kb6
{[%clk 0:00:36.7]} 43. Rg8 {[%clk 0:00:32.6]} 43... f6 {[%clk 0:00:36.2]} 44.
gxf6 {[%clk 0:00:24]} 44... gxf6 {[%clk 0:00:38.1]} 45. Rf8 {[%clk 0:00:25.2]}
45... Rd6 {[%clk 0:00:37.6]} 46. Re8 {[%clk 0:00:23.4]} 46... a5 {[%clk
0:00:36.9]} 47. Rb8+ {[%clk 0:00:16.8]} 47... Kc6 {[%clk 0:00:37.3]} 48. Ra8
{[%clk 0:00:16.9]} 48... Kb5 {[%clk 0:00:30.5]} 49. Rb8+ {[%clk 0:00:17]} 49...
Rb6 {[%clk 0:00:31.9]} 50. Ra8 {[%clk 0:00:13.3]} 50... a4 {[%clk 0:00:30.7]}
51. Kd4 {[%clk 0:00:14.3]} 51... Kb4 {[%clk 0:00:28.8]} 52. Ra7 {[%clk
0:00:06.9]} 52... Rd6+ {[%clk 0:00:27]} 53. Ke3 {[%clk 0:00:06.9]} 53... a3
{[%clk 0:00:25.3]} 54. Ra8 {[%clk 0:00:05.6]} 54... Rb6 {[%clk 0:00:26.3]} 55.
Kd4 {[%clk 0:00:04.8]} 55... Nb3+ {[%clk 0:00:26.8]} 56. Kd5 {[%clk 0:00:04.3]}
56... Kc3 {[%clk 0:00:28.1]} 57. Bxb3 {[%clk 0:00:04.5]} 57... Kxb3 {[%clk
0:00:28.5]} 58. Kc5 {[%clk 0:00:04]} 58... Rb4 {[%clk 0:00:26.2]} 59. Ra7 {[%clk
0:00:02.9]} 59... c3 {[%clk 0:00:27.4]} 0-1